[Event "Vastgota Open 2023"]
[Site "Skara stadshotell, Jarnvagsgatan 5, Skara, Sweden"]
[Date "2023.02.18"]
[Round "5.2"]
[White "Palchuk, Andrii"]
[Black "Galperin, Platon"]
[Result "0-1"]
[TimeControl "15 minutes + 5 seconds per move from move one (Round 1 - 2) / 30 minutes + 10 seconds per move from move one (Round 3 - 9)"]
[WhiteTitle "FM"]
[BlackTitle "GM"]
[WhiteFideId "14176688"]
[BlackFideId "14165414"]
[WhiteElo "2238"]
[BlackElo "2429"]

1. d4 {[%clk 00:30:18]} {[%emt 00:00:01]} Nf6 {[%clk 00:30:19]} 2. c4 {[%clk
00:30:25]} {[%emt 00:00:03]} g6 {[%clk 00:30:27]} {[%emt 00:00:02]} 3. Nf3
{[%clk 00:30:33]} {[%emt 00:00:02]} Bg7 {[%clk 00:30:36]} {[%emt 00:00:02]} 4.
g3 {[%clk 00:30:41]} {[%emt 00:00:01]} O-O {[%clk 00:30:44]} {[%emt 00:00:03]}
5. Bg2 {[%clk 00:30:49]} {[%emt 00:00:01]} d6 {[%clk 00:30:52]} {[%emt
00:00:02]} 6. O-O {[%clk 00:30:56]} {[%emt 00:00:04]} Re8 {[%clk 00:31:01]} 7.
Nc3 {[%clk 00:30:55]} {[%emt 00:00:11]} Bd7 {[%clk 00:31:10]} {[%emt 00:00:01]}
8. e4 {[%clk 00:29:33]} {[%emt 00:01:31]} e5 {[%clk 00:31:18]} {[%emt
00:00:02]} 9. d5 {[%clk 00:29:35]} {[%emt 00:00:08]} a5 {[%clk 00:31:26]}
{[%emt 00:00:02]} 10. h3 {[%clk 00:29:14]} {[%emt 00:00:31]} Na6 {[%clk
00:31:34]} {[%emt 00:00:03]} 11. Be3 {[%clk 00:29:03]} {[%emt 00:00:21]} b6
{[%clk 00:29:36]} {[%emt 00:02:07]} 12. b3 {[%clk 00:27:48]} {[%emt 00:01:25]}
Nc5 {[%clk 00:29:43]} {[%emt 00:00:03]} 13. Qc2 {[%clk 00:27:23]} {[%emt
00:00:36]} Nh5 {[%clk 00:28:34]} {[%emt 00:01:18]} 14. a3 {[%clk 00:26:27]}
{[%emt 00:01:07]} f5 {[%clk 00:23:03]} {[%emt 00:05:41]} 15. b4 {[%clk
00:23:26]} {[%emt 00:03:11]} fxe4 {[%clk 00:22:00]} {[%emt 00:01:12]} 16. Nd2
{[%clk 00:20:32]} {[%emt 00:03:05]} axb4 {[%clk 00:21:24]} {[%emt 00:00:46]} 17.
axb4 {[%clk 00:20:40]} {[%emt 00:00:02]} Nd3 {[%clk 00:21:25]} {[%emt
00:00:08]} 18. Rxa8 {[%clk 00:16:28]} {[%emt 00:04:22]} Qxa8 {[%clk 00:21:33]}
{[%emt 00:00:02]} 19. Rb1 {[%emt 00:02:35]} Ndf4 {[%clk 00:18:14]} {[%emt
00:01:40]} 20. Ndxe4 {[%clk 00:15:42]} {[%emt 00:00:21]} Nxh3+ {[%clk
00:10:47]} {[%emt 00:07:36]} 21. Kh2 {[%clk 00:15:50]} {[%emt 00:00:03]} N3f4
{[%clk 00:10:49]} {[%emt 00:00:07]} 22. gxf4 {[%clk 00:15:47]} {[%emt
00:00:14]} exf4 {[%clk 00:10:07]} {[%emt 00:00:52]} 23. Bd2 {[%clk 00:15:48]}
{[%emt 00:00:09]} Qd8 {[%clk 00:09:28]} {[%emt 00:00:48]} 24. Rh1 {[%clk
00:10:05]} {[%emt 00:05:53]} Bf5 {[%clk 00:05:50]} {[%emt 00:03:49]} 25. Qd1
{[%clk 00:09:27]} {[%emt 00:00:48]} Bd4 {[%clk 00:00:33]} {[%emt 00:05:27]} 26.
Bc1 {[%clk 00:03:07]} {[%emt 00:06:29]} Bxe4 {[%clk 00:00:11]} {[%emt
00:00:32]} 27. Qxd4 {[%clk 00:02:24]} {[%emt 00:00:54]} Bxg2 {[%clk 00:00:12]}
{[%emt 00:00:08]} 28. Kxg2 {[%clk 00:02:23]} {[%emt 00:00:11]} Qg5+ {[%clk
00:00:20]} {[%emt 00:00:02]} 29. Kf1 {[%clk 00:02:16]} {[%emt 00:00:18]} Qf5
{[%clk 00:00:29]} 30. Qd1 {[%clk 00:00:23]} {[%emt 00:02:03]} Ng3+ {[%clk
00:00:17]} {[%emt 00:00:21]} 31. fxg3 {[%clk 00:00:18]} {[%emt 00:00:15]} fxg3+
{[%clk 00:00:25]} {[%emt 00:00:02]} 32. Kg2 {[%clk 00:00:27]} Qf2+ {[%clk
00:00:28]} {[%emt 00:00:07]} 33. Kh3 {[%clk 00:00:36]} {[%emt 00:00:01]} Re5
{[%clk 00:00:28]} {[%emt 00:00:11]} 34. Kg4 {[%clk 00:00:11]} {[%emt 00:00:34]}
g2 {[%clk 00:00:19]} {[%emt 00:00:20]} 35. Rg1 {[%clk 00:00:20]} {[%emt
00:00:02]} Rh5 {[%clk 00:00:20]} {[%emt 00:00:08]} 36. Ne4 {[%clk 00:00:19]}
{[%emt 00:00:11]} Rh4+ {[%clk 00:00:22]} {[%emt 00:00:08]} 37. Kg5 {[%clk
00:00:28]} h6+ {[%clk 00:00:24]} {[%emt 00:00:08]} 0-1

[Event "Vastgota Open 2023"]
[Site "Skara stadshotell, Jarnvagsgatan 5, Skara, Sweden"]
[Date "2023.02.18"]
[Round "5.3"]
[White "Chatalbashev, Boris"]
[Black "Bellon Lopez, Juan Manuel"]
[Result "1-0"]
[TimeControl "15 minutes + 5 seconds per move from move one (Round 1 - 2) / 30 minutes + 10 seconds per move from move one (Round 3 - 9)"]
[WhiteTitle "GM"]
[BlackTitle "GM"]
[WhiteFideId "2900440"]
[BlackFideId "2200031"]
[WhiteElo "2522"]
[BlackElo "2318"]

1. d4 {[%clk 00:30:17]} {[%emt 00:00:02]} Nf6 {[%clk 00:30:18]} {[%emt
00:00:03]} 2. c4 {[%clk 00:30:25]} {[%emt 00:00:02]} a6 {[%clk 00:30:25]}
{[%emt 00:00:03]} 3. Nc3 {[%clk 00:30:26]} {[%emt 00:00:09]} c5 {[%clk
00:30:28]} {[%emt 00:00:08]} 4. e3 {[%clk 00:29:56]} {[%emt 00:00:39]} e6
{[%clk 00:30:37]} 5. Nf3 {[%clk 00:29:59]} {[%emt 00:00:07]} d5 {[%clk
00:30:43]} {[%emt 00:00:04]} 6. cxd5 {[%clk 00:29:59]} {[%emt 00:00:10]} exd5
{[%clk 00:30:52]} {[%emt 00:00:02]} 7. Be2 {[%clk 00:30:06]} {[%emt 00:00:03]}
Nc6 {[%clk 00:31:01]} {[%emt 00:00:01]} 8. O-O {[%clk 00:30:05]} {[%emt
00:00:10]} Bd6 {[%clk 00:31:06]} {[%emt 00:00:05]} 9. dxc5 {[%clk 00:30:08]}
{[%emt 00:00:08]} Bxc5 {[%clk 00:31:15]} {[%emt 00:00:02]} 10. b3 {[%clk
00:29:44]} {[%emt 00:00:33]} O-O {[%clk 00:30:40]} {[%emt 00:00:44]} 11. Bb2
{[%clk 00:29:52]} {[%emt 00:00:02]} Ba7 {[%clk 00:30:23]} {[%emt 00:00:28]} 12.
Rc1 {[%clk 00:28:45]} {[%emt 00:01:16]} d4 {[%clk 00:30:13]} {[%emt 00:00:21]}
13. exd4 {[%clk 00:28:25]} {[%emt 00:00:30]} Nxd4 {[%clk 00:30:21]} {[%emt
00:00:02]} 14. Nxd4 {[%clk 00:28:02]} {[%emt 00:00:33]} Bxd4 {[%clk 00:28:50]}
{[%emt 00:01:41]} 15. Bf3 {[%clk 00:27:27]} {[%emt 00:00:44]} Rb8 {[%clk
00:28:00]} {[%emt 00:01:00]} 16. Ba3 {[%clk 00:25:26]} {[%emt 00:02:11]} Re8
{[%clk 00:27:58]} {[%emt 00:00:13]} 17. Nd5 {[%clk 00:25:28]} {[%emt 00:00:07]}
Be5 {[%clk 00:26:38]} {[%emt 00:01:30]} 18. Ne7+ {[%clk 00:19:19]} {[%emt
00:06:19]} Kh8 {[%clk 00:26:47]} {[%emt 00:00:02]} 19. Qxd8 {[%clk 00:18:52]}
{[%emt 00:00:36]} Rxd8 {[%clk 00:26:56]} {[%emt 00:00:02]} 20. Rfe1 {[%clk
00:17:06]} {[%emt 00:01:55]} Bf4 {[%clk 00:25:28]} {[%emt 00:01:37]} 21. Rxc8
{[%clk 00:16:39]} {[%emt 00:00:38]} Rbxc8 {[%clk 00:23:54]} {[%emt 00:01:45]}
22. Nxc8 {[%clk 00:16:46]} {[%emt 00:00:02]} Rxc8 {[%clk 00:24:04]} {[%emt
00:00:01]} 23. g3 {[%clk 00:16:05]} {[%emt 00:00:50]} Rc2 {[%clk 00:22:29]}
{[%emt 00:01:45]} 24. gxf4 {[%clk 00:15:37]} {[%emt 00:00:38]} 1-0

[Event "Vastgota Open 2023"]
[Site "Skara stadshotell, Jarnvagsgatan 5, Skara, Sweden"]
[Date "2023.02.18"]
[Round "5.4"]
[White "Rasti, Arvin"]
[Black "Miezis, Normunds"]
[Result "1/2-1/2"]
[TimeControl "15 minutes + 5 seconds per move from move one (Round 1 - 2) / 30 minutes + 10 seconds per move from move one (Round 3 - 9)"]
[BlackTitle "GM"]
[WhiteFideId "1741160"]
[BlackFideId "11600136"]
[WhiteElo "2179"]
[BlackElo "2502"]

1. d4 {[%clk 00:30:18]} {[%emt 00:00:01]} Nf6 {[%clk 00:30:15]} {[%emt
00:00:05]} 2. c4 {[%clk 00:30:23]} {[%emt 00:00:06]} e6 {[%clk 00:30:13]}
{[%emt 00:00:11]} 3. Nf3 {[%clk 00:30:29]} {[%emt 00:00:04]} Bb4+ {[%clk
00:30:13]} {[%emt 00:00:10]} 4. Nbd2 {[%clk 00:30:36]} {[%emt 00:00:03]} O-O
{[%clk 00:29:55]} {[%emt 00:00:28]} 5. a3 {[%clk 00:30:42]} {[%emt 00:00:04]}
Be7 {[%clk 00:30:00]} {[%emt 00:00:04]} 6. e4 {[%clk 00:30:36]} {[%emt
00:00:16]} d6 {[%clk 00:30:06]} {[%emt 00:00:04]} 7. Be2 {[%clk 00:29:54]}
{[%emt 00:00:53]} e5 {[%clk 00:29:59]} {[%emt 00:00:16]} 8. b3 {[%clk
00:28:18]} {[%emt 00:01:46]} exd4 {[%clk 00:28:57]} {[%emt 00:01:12]} 9. Nxd4
{[%clk 00:28:26]} {[%emt 00:00:03]} Re8 {[%clk 00:29:00]} {[%emt 00:00:07]} 10.
O-O {[%clk 00:28:27]} {[%emt 00:00:09]} Bf8 {[%clk 00:28:58]} {[%emt 00:00:11]}
11. f3 {[%clk 00:27:53]} {[%emt 00:00:45]} c6 {[%clk 00:27:20]} {[%emt
00:01:48]} 12. Bb2 {[%clk 00:27:20]} {[%emt 00:00:43]} Nbd7 {[%clk 00:26:07]}
{[%emt 00:01:22]} 13. Re1 {[%clk 00:26:20]} {[%emt 00:01:11]} Ne5 {[%clk
00:25:18]} {[%emt 00:00:59]} 14. Rc1 {[%clk 00:24:37]} {[%emt 00:01:52]} Bd7
{[%clk 00:24:56]} {[%emt 00:00:33]} 15. Bf1 {[%clk 00:23:35]} {[%emt 00:01:12]}
Ng6 {[%clk 00:24:15]} {[%emt 00:00:50]} 16. b4 {[%clk 00:22:43]} {[%emt
00:01:03]} a5 {[%clk 00:24:05]} {[%emt 00:00:19]} 17. Qb3 {[%clk 00:22:30]}
{[%emt 00:00:23]} axb4 {[%clk 00:23:38]} {[%emt 00:00:38]} 18. axb4 {[%clk
00:22:34]} {[%emt 00:00:06]} h5 {[%clk 00:22:36]} {[%emt 00:01:11]} 19. c5
{[%clk 00:20:17]} {[%emt 00:02:28]} d5 {[%clk 00:22:08]} {[%emt 00:00:38]} 20.
exd5 {[%clk 00:20:11]} {[%emt 00:00:17]} Nxd5 {[%clk 00:21:27]} {[%emt
00:00:50]} 21. Bc4 {[%clk 00:19:51]} {[%emt 00:00:30]} Ngf4 {[%clk 00:20:50]}
{[%emt 00:00:46]} 22. g3 {[%clk 00:19:27]} {[%emt 00:00:35]} Qg5 {[%clk
00:20:44]} {[%emt 00:00:16]} 23. Ne4 {[%clk 00:19:27]} {[%emt 00:00:10]} Qg6
{[%clk 00:20:02]} {[%emt 00:00:51]} 24. Kh1 {[%clk 00:18:27]} {[%emt 00:01:11]}
Nh3 {[%clk 00:13:34]} {[%emt 00:06:38]} 25. Re2 {[%clk 00:15:39]} {[%emt
00:02:58]} Kh8 {[%clk 00:08:01]} {[%emt 00:05:42]} 26. Rce1 {[%clk 00:14:52]}
{[%emt 00:00:58]} f5 {[%clk 00:07:44]} {[%emt 00:00:27]} 27. Nd2 {[%clk
00:13:09]} {[%emt 00:01:54]} Rxe2 {[%clk 00:06:29]} {[%emt 00:01:24]} 28. Rxe2
{[%clk 00:13:18]} {[%emt 00:00:02]} Ndf4 {[%clk 00:05:40]} {[%emt 00:00:57]} 29.
Bf7 {[%clk 00:11:35]} {[%emt 00:01:54]} Qg5 {[%clk 00:05:31]} {[%emt 00:00:19]}
30. Re3 {[%clk 00:10:36]} {[%emt 00:01:09]} h4 {[%clk 00:04:29]} {[%emt
00:01:12]} 31. Ne2 {[%clk 00:09:26]} {[%emt 00:01:21]} hxg3 {[%clk 00:03:27]}
{[%emt 00:01:11]} 32. hxg3 {[%clk 00:09:29]} {[%emt 00:00:07]} Nxe2 {[%clk
00:03:11]} {[%emt 00:00:27]} 33. Rxe2 {[%clk 00:09:38]} Qxg3 {[%clk 00:03:13]}
{[%emt 00:00:08]} 34. Qe3 {[%clk 00:08:26]} {[%emt 00:01:22]} f4 {[%clk
00:02:35]} {[%emt 00:00:48]} 35. Qd4 {[%clk 00:08:33]} {[%emt 00:00:01]} Rd8
{[%clk 00:01:42]} {[%emt 00:01:04]} 36. Rg2 {[%clk 00:08:13]} {[%emt 00:00:31]}
Qe1+ {[%clk 00:01:05]} {[%emt 00:00:46]} 37. Kh2 {[%clk 00:08:23]} {[%emt
00:00:01]} Qh4 {[%clk 00:00:47]} {[%emt 00:00:27]} 38. Rxg7 {[%clk 00:07:27]}
{[%emt 00:01:06]} Ng5+ {[%clk 00:00:56]} {[%emt 00:00:01]} 39. Kg1 {[%clk
00:07:34]} {[%emt 00:00:04]} Qg3+ {[%clk 00:00:58]} {[%emt 00:00:07]} 40. Kh1
{[%clk 00:07:42]} {[%emt 00:00:02]} Qe1+ {[%clk 00:00:47]} {[%emt 00:00:20]} 41.
Kh2 {[%clk 00:07:48]} {[%emt 00:00:04]} Qe2+ {[%clk 00:00:43]} {[%emt
00:00:15]} 42. Kg1 {[%clk 00:07:21]} {[%emt 00:00:36]} Qd1+ {[%clk 00:00:47]}
{[%emt 00:00:07]} 43. Kh2 {[%clk 00:07:08]} {[%emt 00:00:22]} Qe2+ {[%clk
00:00:56]} {[%emt 00:00:02]} 44. Kg1 {[%clk 00:07:12]} {[%emt 00:00:07]} Qe1+
{[%clk 00:00:54]} {[%emt 00:00:12]} 45. Kh2 {[%clk 00:07:17]} {[%emt 00:00:04]}
Qg3+ {[%clk 00:00:23]} {[%emt 00:00:41]} 46. Kh1 {[%clk 00:07:26]} Qh4+ {[%clk
00:00:23]} {[%emt 00:00:10]} 47. Kg1 {[%clk 00:07:31]} {[%emt 00:00:05]} Qg3+
{[%clk 00:00:23]} {[%emt 00:00:10]} 48. Kh1 {[%clk 00:07:38]} {[%emt 00:00:03]}
Qe1+ {[%clk 00:00:22]} {[%emt 00:00:11]} 49. Kh2 {[%clk 00:07:45]} {[%emt
00:00:04]} Qh4+ {[%clk 00:00:21]} {[%emt 00:00:10]} 50. Kg1 {[%clk 00:07:51]}
{[%emt 00:00:04]} Qg3+ {[%clk 00:00:25]} {[%emt 00:00:06]} 51. Kh1 {[%clk
00:07:59]} {[%emt 00:00:02]} Qe1+ {[%clk 00:00:21]} {[%emt 00:00:15]} 52. Kh2
{[%clk 00:08:08]} {[%emt 00:00:01]} Qh4+ {[%clk 00:00:26]} {[%emt 00:00:05]} 53.
Kg1 {[%clk 00:08:16]} {[%emt 00:00:02]} 1/2-1/2

[Event "Vastgota Open 2023"]
[Site "Skara stadshotell, Jarnvagsgatan 5, Skara, Sweden"]
[Date "2023.02.18"]
[Round "5.5"]
[White "Sivuk, Vitaly"]
[Black "Olsson, Simon"]
[Result "1-0"]
[TimeControl "15 minutes + 5 seconds per move from move one (Round 1 - 2) / 30 minutes + 10 seconds per move from move one (Round 3 - 9)"]
[WhiteTitle "GM"]
[WhiteFideId "14116502"]
[BlackFideId "1707345"]
[WhiteElo "2502"]
[BlackElo "2125"]

1. d4 {[%clk 00:30:17]} {[%emt 00:00:01]} Nf6 {[%clk 00:30:19]} {[%emt
00:00:02]} 2. c4 {[%clk 00:30:25]} {[%emt 00:00:02]} Nc6 {[%clk 00:30:23]}
{[%emt 00:00:07]} 3. f3 {[%clk 00:30:17]} {[%emt 00:00:17]} e5 {[%clk
00:29:26]} {[%emt 00:01:08]} 4. d5 {[%clk 00:30:24]} {[%emt 00:00:03]} Ne7
{[%clk 00:28:42]} {[%emt 00:00:54]} 5. e4 {[%clk 00:30:20]} {[%emt 00:00:13]}
Ng6 {[%clk 00:28:37]} {[%emt 00:00:16]} 6. Be3 {[%clk 00:30:13]} {[%emt
00:00:16]} Bb4+ {[%clk 00:26:18]} {[%emt 00:02:29]} 7. Nd2 {[%clk 00:30:14]}
{[%emt 00:00:09]} O-O {[%clk 00:25:56]} {[%emt 00:00:33]} 8. a3 {[%clk
00:30:13]} {[%emt 00:00:11]} Bxd2+ {[%clk 00:25:48]} {[%emt 00:00:18]} 9. Qxd2
{[%clk 00:30:20]} {[%emt 00:00:02]} Nh5 {[%clk 00:24:37]} {[%emt 00:01:21]} 10.
Bd3 {[%clk 00:29:57]} {[%emt 00:00:32]} d6 {[%clk 00:24:11]} {[%emt 00:00:37]}
11. Ne2 {[%clk 00:29:58]} {[%emt 00:00:08]} Qh4+ {[%clk 00:18:54]} {[%emt
00:05:28]} 12. g3 {[%clk 00:29:25]} {[%emt 00:00:42]} Qh3 {[%clk 00:17:50]}
{[%emt 00:01:15]} 13. O-O-O {[%clk 00:28:52]} {[%emt 00:00:42]} a6 {[%clk
00:17:33]} {[%emt 00:00:29]} 14. Nc3 {[%clk 00:28:17]} {[%emt 00:00:44]} Rb8
{[%clk 00:16:17]} {[%emt 00:01:26]} 15. Kb1 {[%clk 00:28:10]} {[%emt 00:00:16]}
Qd7 {[%clk 00:14:54]} {[%emt 00:01:34]} 16. c5 {[%clk 00:28:00]} {[%emt
00:00:20]} Re8 {[%clk 00:13:39]} {[%emt 00:01:25]} 17. Rc1 {[%clk 00:27:54]}
{[%emt 00:00:16]} dxc5 {[%clk 00:13:16]} {[%emt 00:00:34]} 18. Bxc5 {[%clk
00:27:58]} {[%emt 00:00:05]} b6 {[%clk 00:13:17]} {[%emt 00:00:09]} 19. Be3
{[%clk 00:26:57]} {[%emt 00:01:09]} b5 {[%clk 00:13:03]} {[%emt 00:00:26]} 20.
Na2 {[%clk 00:26:57]} {[%emt 00:00:10]} Bb7 {[%clk 00:12:13]} {[%emt 00:01:00]}
21. Rhd1 {[%clk 00:26:16]} {[%emt 00:00:51]} c6 {[%clk 00:11:09]} {[%emt
00:01:15]} 22. dxc6 {[%clk 00:26:11]} {[%emt 00:00:14]} Bxc6 {[%clk 00:11:17]}
{[%emt 00:00:02]} 23. Qa5 {[%clk 00:26:07]} {[%emt 00:00:14]} Bb7 {[%clk
00:09:16]} {[%emt 00:02:12]} 24. Nb4 {[%clk 00:25:20]} {[%emt 00:00:55]} Qd8
{[%clk 00:08:35]} {[%emt 00:00:52]} 25. Qc7 {[%clk 00:24:23]} {[%emt 00:01:07]}
Re7 {[%clk 00:05:53]} {[%emt 00:02:52]} 26. Qxd8+ {[%clk 00:24:19]} {[%emt
00:00:14]} Rxd8 {[%clk 00:06:03]} 27. Bxb5 {[%clk 00:23:42]} {[%emt 00:00:47]}
1-0

[Event "Vastgota Open 2023"]
[Site "Skara stadshotell, Jarnvagsgatan 5, Skara, Sweden"]
[Date "2023.02.18"]
[Round "5.6"]
[White "Lind, Jan-Olov"]
[Black "Kucuksari, Kaan"]
[Result "1/2-1/2"]
[TimeControl "15 minutes + 5 seconds per move from move one (Round 1 - 2) / 30 minutes + 10 seconds per move from move one (Round 3 - 9)"]
[BlackTitle "IM"]
[WhiteFideId "1701193"]
[BlackFideId "6380166"]
[WhiteElo "2096"]
[BlackElo "2380"]

1. e4 {[%clk 00:30:18]} {[%emt 00:00:02]} c5 {[%clk 00:30:19]} {[%emt
00:00:02]} 2. Nf3 {[%clk 00:30:25]} {[%emt 00:00:03]} d6 {[%clk 00:30:27]}
{[%emt 00:00:02]} 3. d4 {[%clk 00:30:14]} {[%emt 00:00:21]} cxd4 {[%clk
00:30:34]} {[%emt 00:00:02]} 4. Nxd4 {[%clk 00:30:22]} {[%emt 00:00:02]} Nf6
{[%clk 00:30:42]} {[%emt 00:00:02]} 5. Nc3 {[%clk 00:30:32]} Nc6 {[%clk
00:30:51]} {[%emt 00:00:03]} 6. Bc4 {[%clk 00:30:34]} {[%emt 00:00:07]} e6
{[%clk 00:30:57]} {[%emt 00:00:04]} 7. Be3 {[%clk 00:30:35]} {[%emt 00:00:08]}
Bd7 {[%clk 00:31:05]} {[%emt 00:00:03]} 8. Bb3 {[%clk 00:30:20]} {[%emt
00:00:25]} Nxd4 {[%clk 00:31:13]} {[%emt 00:00:02]} 9. Bxd4 {[%clk 00:30:11]}
{[%emt 00:00:19]} b5 {[%clk 00:31:20]} {[%emt 00:00:02]} 10. a3 {[%clk
00:28:44]} {[%emt 00:01:38]} Be7 {[%clk 00:31:17]} {[%emt 00:00:13]} 11. Qe2
{[%clk 00:28:36]} {[%emt 00:00:17]} O-O {[%clk 00:31:08]} {[%emt 00:00:20]} 12.
O-O-O {[%clk 00:27:44]} {[%emt 00:01:01]} a5 {[%clk 00:30:43]} {[%emt
00:00:36]} 13. e5 {[%clk 00:22:26]} {[%emt 00:05:28]} dxe5 {[%clk 00:30:49]}
{[%emt 00:00:04]} 14. Qxe5 {[%clk 00:22:02]} {[%emt 00:00:33]} Bc6 {[%clk
00:29:29]} {[%emt 00:01:30]} 15. Nxb5 {[%clk 00:20:01]} {[%emt 00:02:11]} Qb8
{[%clk 00:28:11]} {[%emt 00:01:28]} 16. Nc7 {[%clk 00:18:15]} {[%emt 00:01:56]}
Ra7 {[%clk 00:28:20]} {[%emt 00:00:02]} 17. Bxa7 {[%clk 00:17:44]} {[%emt
00:00:41]} Qxa7 {[%clk 00:28:29]} {[%emt 00:00:02]} 18. Nxe6 {[%clk 00:17:16]}
{[%emt 00:00:36]} Rc8 {[%clk 00:27:03]} {[%emt 00:01:36]} 19. Rhe1 {[%clk
00:14:41]} {[%emt 00:02:45]} a4 {[%clk 00:26:55]} {[%emt 00:00:19]} 20. Ba2
{[%clk 00:14:00]} {[%emt 00:00:50]} Qxf2 {[%clk 00:24:20]} {[%emt 00:02:45]} 21.
Re2 {[%clk 00:13:35]} {[%emt 00:00:35]} Qh4 {[%clk 00:23:11]} {[%emt 00:01:20]}
22. Nxg7 {[%clk 00:12:09]} {[%emt 00:01:36]} Ne4 {[%clk 00:21:38]} {[%emt
00:01:43]} 23. Nh5 {[%clk 00:05:23]} {[%emt 00:06:55]} Bg5+ {[%clk 00:20:43]}
{[%emt 00:01:06]} 24. Kb1 {[%clk 00:05:11]} {[%emt 00:00:22]} Qxh5 {[%clk
00:20:37]} {[%emt 00:00:15]} 25. Rf1 {[%clk 00:02:53]} {[%emt 00:02:28]} Qxe2
{[%clk 00:16:14]} {[%emt 00:04:33]} 26. Bxf7+ {[%clk 00:02:57]} {[%emt
00:00:06]} Kf8 {[%clk 00:16:23]} {[%emt 00:00:02]} 27. Bc4+ {[%clk 00:01:51]}
{[%emt 00:01:15]} Qxf1+ {[%clk 00:16:26]} {[%emt 00:00:08]} 28. Bxf1 {[%clk
00:01:59]} {[%emt 00:00:02]} Bf6 {[%clk 00:14:48]} {[%emt 00:01:48]} 29. Qf5
{[%clk 00:02:05]} {[%emt 00:00:04]} Re8 {[%clk 00:13:37]} {[%emt 00:01:21]} 30.
Bd3 {[%clk 00:01:51]} {[%emt 00:00:23]} Kg7 {[%clk 00:13:30]} {[%emt 00:00:18]}
31. Ka2 {[%clk 00:01:48]} {[%emt 00:00:13]} Re5 {[%clk 00:10:33]} {[%emt
00:03:07]} 32. Qc8 {[%clk 00:01:56]} {[%emt 00:00:02]} Be8 {[%clk 00:08:08]}
{[%emt 00:02:34]} 33. Qg4+ {[%clk 00:01:28]} {[%emt 00:00:38]} Bg6 {[%clk
00:08:13]} {[%emt 00:00:05]} 34. h4 {[%clk 00:01:30]} {[%emt 00:00:08]} h5
{[%clk 00:08:10]} {[%emt 00:00:12]} 35. Qd7+ {[%clk 00:01:39]} {[%emt
00:00:02]} Re7 {[%clk 00:08:17]} {[%emt 00:00:04]} 36. Qxa4 {[%clk 00:01:23]}
{[%emt 00:00:26]} Nc5 {[%clk 00:01:52]} {[%emt 00:06:35]} 37. Qb5 {[%clk
00:01:31]} Rb7 {[%clk 00:00:26]} {[%emt 00:01:36]} 38. Qxb7+ {[%clk 00:00:35]}
{[%emt 00:01:06]} Nxb7 {[%clk 00:00:35]} {[%emt 00:00:02]} 39. Bxg6 {[%clk
00:00:29]} {[%emt 00:00:16]} Kxg6 {[%clk 00:00:44]} {[%emt 00:00:01]} 40. b4
{[%clk 00:00:38]} Kf5 {[%clk 00:00:31]} {[%emt 00:00:24]} 41. a4 {[%clk
00:00:46]} {[%emt 00:00:02]} Bxh4 {[%clk 00:00:14]} {[%emt 00:00:27]} 42. a5
{[%clk 00:00:54]} {[%emt 00:00:02]} Bf2 {[%clk 00:00:17]} {[%emt 00:00:06]} 43.
Kb3 {[%clk 00:01:03]} Kg4 {[%clk 00:00:21]} {[%emt 00:00:06]} 44. c4 {[%clk
00:01:10]} {[%emt 00:00:03]} Kg3 {[%clk 00:00:21]} {[%emt 00:00:10]} 45. a6
{[%clk 00:01:18]} {[%emt 00:00:03]} Nc5+ {[%clk 00:00:12]} {[%emt 00:00:19]} 46.
bxc5 {[%clk 00:01:22]} {[%emt 00:00:06]} Bxc5 {[%clk 00:00:20]} {[%emt
00:00:02]} 47. Ka4 {[%clk 00:01:31]} Kxg2 {[%clk 00:00:28]} {[%emt 00:00:02]}
48. Kb5 {[%clk 00:01:41]} Ba7 {[%clk 00:00:35]} {[%emt 00:00:03]} 49. c5 {[%clk
00:01:49]} {[%emt 00:00:02]} h4 {[%clk 00:00:43]} {[%emt 00:00:02]} 50. c6
{[%clk 00:01:59]} h3 {[%clk 00:00:47]} {[%emt 00:00:06]} 51. c7 {[%clk
00:02:08]} h2 {[%clk 00:00:56]} {[%emt 00:00:01]} 52. c8=Q {[%clk 00:02:16]}
{[%emt 00:00:01]} h1=Q {[%clk 00:01:04]} {[%emt 00:00:02]} 53. Qb7+ {[%clk
00:02:25]} {[%emt 00:00:02]} Kh2 {[%clk 00:01:12]} {[%emt 00:00:02]} 54. Qxa7
{[%clk 00:02:19]} {[%emt 00:00:17]} Qf1+ {[%clk 00:01:07]} {[%emt 00:00:12]} 55.
Kc6 {[%clk 00:02:24]} {[%emt 00:00:06]} Qf6+ {[%clk 00:00:54]} {[%emt
00:00:23]} 56. Kb7 {[%clk 00:02:28]} {[%emt 00:00:06]} Qf3+ {[%clk 00:00:32]}
{[%emt 00:00:33]} 57. Kb8 {[%clk 00:02:34]} {[%emt 00:00:04]} Qf8+ {[%clk
00:00:36]} {[%emt 00:00:06]} 58. Kb7 {[%clk 00:02:38]} {[%emt 00:00:06]} Qf3+
{[%clk 00:00:42]} {[%emt 00:00:03]} 59. Kb8 {[%clk 00:02:19]} {[%emt 00:00:29]}
Qf8+ {[%clk 00:00:50]} {[%emt 00:00:02]} 60. Kb7 {[%clk 00:02:27]} {[%emt
00:00:03]} 1/2-1/2